{"text_format":"3","workbook":"xlsx","n_sheets":4,"sheets":["Dashboard","Attività","Passività","calcoli"],"not_rendered":{"charts":4,"defined_names":8},"read":"whole","date_system":"1900"}

{"sheet":"Dashboard","index":0,"n_rows":16,"n_cols":8,"rows_kept":16}
[]
[null,"DASHBOARD",{"$nulls":4},"RIEPILOGO PATRIMONIO NETTO"," "]
{"$rows_empty":8}
[null,{"$f":"PatrimonioNetto","v":{"v":159600,"d":"€ 159,600"}},null,{"$f":"AttivitàTotali","v":{"v":380800,"d":"€ 380,800"}},null,null,{"$f":"PassivitàTotali","v":{"v":221200,"d":"€ 221,200"}}]
[null,"PATRIMONIO NETTO",null,"ATTIVITÀ TOTALI",null,null,"PASSIVITÀ TOTALI"]
[{"$nulls":3},"LIQUIDITÀ",null,null,"NON GARANTITE"]
[{"$nulls":3},"INVESTIMENTI",null,null,"GARANTITE"]
[{"$nulls":3},"PENSIONAMENTO"]
[{"$nulls":3},"PERSONALI"]

{"sheet":"Attività","index":1,"n_rows":24,"n_cols":10,"rows_kept":24,"merged":[[11,1,12,1],[13,1,14,1],[14,2,14,4],[14,6,14,8],[25,2,25,4],[25,6,25,8]]}
[]
[null,"ATTIVITÀ",{"$nulls":5},"RIEPILOGO PATRIMONIO NETTO",null," "]
[]
[null,null," ","LIQUIDITÀ","VALORE",null," ","PERSONALI","VALORE"]
[{"$nulls":3},"FONDO DI CASSA",{"v":2000,"d":"2,000"},null,null,"RESIDENZA PRINCIPALE",{"v":233000,"d":"233,000"}]
[{"$nulls":3},"CONTI CORRENTI",{"v":2500,"d":"2,500"},null,null,"SECONDA RESIDENZA"]
[{"$nulls":3},"CONTI DEPOSITO",{"v":4000,"d":"4,000"},null,null,"CREDITI RECUPERABILI"]
[{"$nulls":3},"CONTI DEL MERCATO MONETARIO",{"v":3300,"d":"3,300"},null,null,"AUTOMOBILI",{"v":32000,"d":"32,000"}]
[{"$nulls":3},"FONDI DEL MERCATO MONETARIO",{"v":7000,"d":"7,000"},null,null,"ARREDI",{"v":10000,"d":"10,000"}]
[{"$nulls":3},"CERTIFICATI DI DEPOSITO",{"$nulls":3},"PELLICCE E GIOIELLI"]
[{"$nulls":3},"BUONI DEL TESORO USA",{"$nulls":3},"ALTRI BENI",{"v":1500,"d":"1,500"}]
[null,{"$f":"AttivitàTotali","v":{"v":380800,"d":"€ 380,800"}},null,"VALORE DI RISCATTO POLIZZA VITA",{"v":24500,"d":"24,500"}]
[{"$nulls":3},"SUBTOTALE",{"$f":"SUBTOTAL(109,tblLiquidità[VALORE])","v":{"v":43300,"d":"43,300"}},null,null,"SUBTOTALE",{"$f":"SUBTOTAL(109,tblPersonale[VALORE])","v":{"v":276500,"d":"276,500"}}]
[null,"ATTIVITÀ TOTALI"]
[]
[]
[null,null," ","INVESTIMENTI","VALORE",null," ","PENSIONAMENTO","VALORE"]
[{"$nulls":3},"AZIONI",{"v":15000,"d":"15,000"},null,null,"PENSIONE"]
[{"$nulls":3},"OBBLIGAZIONI",{"$nulls":3},"CONTI PREVIDENZIALI INDIVIDUALI"]
[{"$nulls":3},"FONDI COMUNI D'INVESTIMENTO",{"$nulls":3},"CONTI KEOGH"]
[{"$nulls":3},"QUOTE DI PARTECIPAZIONE",{"$nulls":3},"401K",{"v":46000,"d":"46,000"}]
[{"$nulls":3},"ALTRI INVESTIMENTI",{"$nulls":3},"SEP"]
[{"$nulls":7},"ESOP"]
[{"$nulls":3},"SUBTOTALE",{"$f":"SUBTOTAL(109,tblInvestimenti[VALORE])","v":{"v":15000,"d":"15,000"}},null,null,"SUBTOTALE",{"$f":"SUBTOTAL(109,tblPensionamento[VALORE])","v":{"v":46000,"d":"46,000"}}]

{"sheet":"Passività","index":2,"n_rows":14,"n_cols":10,"rows_kept":14,"merged":[[11,1,12,1],[13,1,14,1]]}
[]
[null,"PASSIVITÀ",{"$nulls":5},"RIEPILOGO PATRIMONIO NETTO",null," "]
[]
[null,null," ","NON GARANTITE","OWE",null," ","GARANTITE","OWE"]
[{"$nulls":3},"CARTE DI CREDITO",{"v":1200,"d":"1,200"},null,null,"Prestiti auto",{"v":14500,"d":"14,500"}]
[{"$nulls":3},"CONTI CORRENTI",{"v":3000,"d":"3,000"},null,null,"Prestiti per veicoli da vacanza"]
[{"$nulls":3},"PRESTITI DI STUDIO",{"v":17500,"d":"17,500"},null,null,"Prestiti per elettrodomestici"]
[{"$nulls":3},"ALIMENTI",{"$nulls":3},"Ipoteche immobiliari",{"v":144000,"d":"144,000"}]
[{"$nulls":3},"ALIMENTI PER I FIGLI",{"$nulls":3},"Home equity loan",{"v":21000,"d":"21,000"}]
[{"$nulls":3},"FONDO IMPOSTE",{"v":8000,"d":"8,000"},null,null,"Altri prestiti"]
[{"$nulls":3},"ALTRO",{"v":6000,"d":"6,000"},null,null,"Fondo imposte",{"v":4000,"d":"4,000"}]
[null,{"$f":"PassivitàTotali","v":{"v":221200,"d":"€ 221,200"}},{"$nulls":5},"Altro",{"v":2000,"d":"2,000"}]
[{"$nulls":3},"SUBTOTALE",{"$f":"SUBTOTAL(109,tblNonGarantite[OWE])","v":{"v":35700,"d":"35,700"}},null,null,"SUBTOTALE",{"$f":"SUBTOTAL(109,tblGarantite[OWE])","v":{"v":185500,"d":"185,500"}}]
[null,"ATTIVITÀ TOTALI"]

{"sheet":"calcoli","index":3,"n_rows":23,"n_cols":3,"rows_kept":23,"hidden":true}
[]
[null,"***Questo foglio deve restare nascosto***"]
{"$rows_empty":8}
[null,{"$f":"tblLiquidità[[#Headers],[LIQUIDITÀ]]","v":"LIQUIDITÀ"},{"$f":"SUM(tblLiquidità[VALORE])","v":{"v":43300,"d":"€ 43,300"}}]
[null,{"$f":"tblInvestimenti[[#Headers],[INVESTIMENTI]]","v":"INVESTIMENTI"},{"$f":"SUM(tblInvestimenti[VALORE])","v":{"v":15000,"d":"€ 15,000"}}]
[null,{"$f":"tblPensionamento[[#Headers],[PENSIONAMENTO]]","v":"PENSIONAMENTO"},{"$f":"SUM(tblPensionamento[VALORE])","v":{"v":46000,"d":"€ 46,000"}}]
[null,{"$f":"tblPersonale[[#Headers],[PERSONALI]]","v":"PERSONALI"},{"$f":"SUM(tblPersonale[VALORE])","v":{"v":276500,"d":"€ 276,500"}}]
[null,"Attività totali",{"$f":"SUM(tblLiquidità[VALORE],tblInvestimenti[VALORE],tblPensionamento[VALORE],tblPersonale[VALORE])","v":{"v":380800,"d":"€ 380,800"}}]
[]
[]
[null,{"$f":"tblNonGarantite[[#Headers],[NON GARANTITE]]","v":"NON GARANTITE"},{"$f":"SUM(tblNonGarantite[OWE])","v":{"v":35700,"d":"€ 35,700"}}]
[null,{"$f":"tblGarantite[[#Headers],[GARANTITE]]","v":"GARANTITE"},{"$f":"SUM(tblGarantite[OWE])","v":{"v":185500,"d":"€ 185,500"}}]
[null,"Passività totali",{"$f":"SUM(tblNonGarantite[OWE],tblGarantite[OWE])","v":{"v":221200,"d":"€ 221,200"}}]
[]
[]
[null,"Patrimonio netto",{"$f":"C15-C20","v":{"v":159600,"d":"€ 159,600"}}]